fUST/lending_fUST_20250723
["ID","MTS","AMOUNT","RATE_DAILY","PERIOD"]
[374321042,1753273861144,-12622.36869388,0.000229,7]
[374321044,1753273861153,-153.0,0.00022904,2]
[374321046,1753273861165,-153.0,0.00022904,2]
[374321048,1753273861174,-153.0,0.00022904,2]
[374321050,1753273861183,-153.0,0.00022904,2]
[374321052,1753273861192,-153.0,0.00022904,2]
[374321054,1753273861202,-153.0,0.00022904,2]
[374321056,1753273861211,-153.0,0.00022904,2]
[374321058,1753273861221,-153.0,0.00022904,2]
[374321059,1753273861230,-153.0,0.00022904,2]
[374321060,1753273861239,-153.0,0.00022904,2]
[374321061,1753273861248,-153.0,0.00022904,2]
[374321062,1753273861256,-312.2187695,0.00022904,2]
[374321063,1753273861265,-153.0,0.00022904,2]
[374321064,1753273861275,-153.0,0.00022904,2]
[374321065,1753273861283,-153.0,0.00022904,2]
[374321066,1753273861293,-153.0,0.00022904,2]
[374321067,1753273861302,-153.0,0.00022904,2]
[374321068,1753273861311,-153.0,0.00022904,2]
[374321069,1753273861321,-153.0,0.00022904,2]
[374321070,1753273861330,-153.0,0.00022904,2]
[374321071,1753273861339,-153.0,0.00022904,2]
[374321072,1753273861349,-153.0,0.00022904,2]
[374321073,1753273861358,-153.0,0.00022904,2]
[374321074,1753273861367,-153.0,0.00022904,2]
[374321075,1753273861376,-153.0,0.00022904,2]
[374321076,1753273861384,-153.0,0.00022904,2]
[374321077,1753273861394,-153.0,0.00022904,2]
[374321078,1753273861404,-153.0,0.00022904,2]
[374321079,1753273861414,-800.0,0.00022908,2]
[374321080,1753273861423,-641.198339,0.00022913,7]
[374321081,1753273861432,-641.198339,0.00022913,7]
[374321082,1753273861441,-577.5430988,0.00022929,2]
[374321083,1753273861450,-577.5430988,0.00022929,2]
[374321084,1753273861460,-577.5430988,0.00022929,2]
[374321086,1753273861469,-577.5430988,0.00022929,2]
[374321088,1753273861479,-19472.3542121,0.00022929,2]
[374321093,1753273861525,-770.37750259,0.00022929,2]
[374321160,1753273862174,-500.0,0.00018867,2]
[374321162,1753273862183,-500.0,0.00018867,2]
[374321164,1753273862192,-500.0,0.00018867,2]
[374321166,1753273862201,-307.85259268,0.00018867,2]
[374321168,1753273862211,-500.0,0.00018867,2]
[374321170,1753273862220,-500.0,0.00018867,2]
[374321172,1753273862229,-500.0,0.00018867,2]
[374321182,1753273862238,-500.0,0.00018867,2]
[374321184,1753273862334,-500.0,0.00018867,2]
[374321186,1753273862344,-500.0,0.00018867,2]
[374321188,1753273862354,-500.0,0.00018867,2]
[374321190,1753273862364,-460.0,0.00019178,2]
[374321192,1753273862373,-460.0,0.00019178,2]
[374321194,1753273862383,-325.310964,0.00021643,2]
[374321196,1753273862392,-325.310964,0.00022,7]
[374321198,1753273862402,-325.310964,0.000227,7]
[374321200,1753273862411,-3271.38615251,0.00022929,2]
[374321209,1753273862489,-70.42102419,0.00022929,2]
[374323047,1753273962250,-1200.0,0.00019177,2]
[374323048,1753273962272,-300.0,0.00019177,2]
[374323049,1753273962292,-462.32236347,0.00019178,2]
[374323050,1753273962320,-460.0,0.00019178,2]
[374323051,1753273962341,-460.0,0.00019178,2]
[374323052,1753273962362,-460.0,0.00019178,2]
[374323053,1753273962384,-460.0,0.00019178,2]
[374323054,1753273962405,-119.67763653,0.00019178,2]
[374323058,1753274028522,-325.0,0.00018768,2]
[374323061,1753274312567,462.231745,0.00013699,2]
[374323066,1753274625710,3414.0,0.00026027,120]
[374323067,1753274733493,-1361.90600743,0.00018658,2]
[374323068,1753274733516,-90.78603063,0.00018757,2]
[374323069,1753274777296,509.0,0.00026,120]
[374323070,1753274834075,-219.57173524,0.00018666,2]
[374323071,1753274834096,-125.10484874,0.00018757,2]
[374323072,1753274834118,-1200.0,0.00018766,2]
[374323073,1753274834138,-300.0,0.00018767,2]
[374323074,1753274834160,-253.0,0.00018767,2]
[374323075,1753274834185,-500.0,0.00018767,2]
[374323076,1753274834209,-304.53866087,0.00018767,2]
[374323077,1753274834231,-21995.49620082,0.00018768,2]
[374323078,1753274836078,-249.48488768,0.00018768,2]
[374323080,1753274946155,-165.72360286,0.00018177,2]
[374323081,1753274949142,-24221.45936667,0.00018177,2]
[374323082,1753274972081,-512.81703047,0.00018177,2]
[374323133,1753275032034,-150.0,0.00018671,2]
[374323135,1753275032047,-171.06130044,0.0001869,2]
[374323140,1753275032089,-412.43734344,0.0001869,2]
[374323143,1753275032101,-513.2,0.00018758,3]
[374323145,1753275032111,-300.0,0.00018767,2]
[374323147,1753275032123,-1494.04000162,0.00018768,2]
[374323149,1753275032140,-17341.77238786,0.00018768,2]
[374323823,1753275038927,-328594.20652202,0.00018768,2]
[374323825,1753275038942,-500.0,0.0001889,2]
[374323827,1753275038952,-900.0,0.000191,2]
[374323829,1753275038962,-460.0,0.00019178,2]
[374323831,1753275038971,-460.0,0.00019178,2]
[374323833,1753275038981,-460.0,0.00019178,2]
[374323836,1753275038993,-462.18484371,0.00019178,2]
[374323838,1753275039002,-460.0,0.00019178,2]
[374323839,1753275039012,-460.0,0.00019178,2]
[374323841,1753275039021,-460.0,0.00019178,2]
[374323844,1753275039030,-460.0,0.00019178,2]
[374323846,1753275039040,-460.0,0.00019178,2]
[374323848,1753275039049,-460.0,0.00019178,2]
[374323851,1753275039058,-460.0,0.00019178,2]
[374323854,1753275039068,-466.0022302,0.00019178,2]
[374323858,1753275039078,-460.0,0.00019178,2]
[374323859,1753275039087,-460.0,0.00019178,2]
[374323862,1753275039097,-460.0,0.00019178,2]
[374323863,1753275039106,-460.0,0.00019178,2]
[374323866,1753275039115,-465.7251263,0.00019178,2]
[374323868,1753275039125,-460.0,0.00019178,2]
[374323870,1753275039134,-460.0,0.00019178,2]
[374323872,1753275039143,-460.0,0.00019178,2]
[374323874,1753275039153,-460.0,0.00019178,2]
[374323876,1753275039162,-198.15149403,0.00019178,2]
[374323878,1753275039171,-460.0,0.00019178,2]
[374323880,1753275039182,-460.0,0.00019178,2]
[374323882,1753275039191,-463.1379387,0.00019178,2]
[374323884,1753275039201,-460.0,0.00019178,2]
[374323886,1753275039210,-460.0,0.00019178,2]
[374323887,1753275039219,-460.0,0.00019178,2]
[374323889,1753275039228,-460.0,0.00019178,2]
[374323891,1753275039237,-462.6331661,0.00019178,2]
[374323893,1753275039247,-352.68478663,0.00019178,2]
[374323896,1753275039257,-460.0,0.00019178,2]
[374323898,1753275039266,-460.0,0.00019178,2]
[374323901,1753275039276,-1002.96416905,0.00019178,2]
[374323904,1753275039285,-6550.44,0.00019178,2]
[374323905,1753275039295,-460.74751987,0.00019178,2]
[374323909,1753275039305,-906.7,0.00019178,2]
[374323911,1753275039314,-152.24635668,0.00019178,2]
[374323913,1753275039323,-460.0,0.00019178,2]
[374323915,1753275039335,-460.0,0.00019178,2]
[374323917,1753275039344,-460.0,0.00019178,2]
[374323919,1753275039354,-460.0,0.00019178,2]
[374323921,1753275039363,-460.0,0.00019178,2]
[374323923,1753275039373,-354.37143424,0.00019178,2]
[374323925,1753275039382,-256.12894922,0.00019178,2]
[374323927,1753275039392,-460.0,0.00019178,2]
[374323929,1753275039401,-460.0,0.00019178,2]
[374323931,1753275039411,-460.0,0.00019178,2]
[374323933,1753275039421,-510.53772476,0.00019178,2]
[374323935,1753275039435,-460.0,0.00019178,2]
[374323937,1753275039445,-460.0,0.00019178,2]
[374323939,1753275039454,-460.0,0.00019178,2]
[374323941,1753275039464,-180.82257374,0.00019178,2]
[374323943,1753275039474,-460.0,0.00019178,2]
[374323945,1753275039483,-927.65,0.00019178,2]
[374323947,1753275039492,-460.46264544,0.00019178,2]
[374323949,1753275039502,-460.0,0.00019178,2]
[374323951,1753275039512,-460.0,0.00019178,2]
[374323953,1753275039522,-460.0,0.00019178,2]
[374323955,1753275039531,-460.0,0.00019178,2]
[374323957,1753275039541,-460.0,0.00019178,2]
[374323959,1753275039550,-460.0,0.00019178,2]
[374323961,1753275039559,-460.0,0.00019178,2]
[374323963,1753275039569,-460.0,0.00019178,2]
[374323966,1753275039579,-460.0,0.00019178,2]
[374323968,1753275039588,-464.05545929,0.00019178,2]
[374323970,1753275039598,-460.0,0.00019178,2]
[374323972,1753275039608,-460.0,0.00019178,2]
[374323974,1753275039618,-460.0,0.00019178,2]
[374323976,1753275039628,-460.0,0.00019178,2]
[374323978,1753275039637,-460.0,0.00019178,2]
[374323980,1753275039647,-460.0,0.00019178,2]
[374323982,1753275039657,-460.0,0.00019178,2]
[374323984,1753275039666,-460.0,0.00019178,2]
[374323986,1753275039676,-460.0,0.00019178,2]
[374323988,1753275039688,-2622.86,0.00019178,2]
[374323990,1753275039698,-460.0,0.00019178,2]
[374323992,1753275039708,-460.0,0.00019178,2]
[374323994,1753275039717,-460.0,0.00019178,2]
[374323996,1753275039727,-460.0,0.00019178,2]
[374323998,1753275039737,-460.0,0.00019178,2]
[374324000,1753275039746,-460.0,0.00019178,2]
[374324002,1753275039756,-460.0,0.00019178,2]
[374324004,1753275039765,-502.49764899,0.00019178,2]
[374324006,1753275039775,-493.2,0.00019178,2]
[374324008,1753275039784,-460.0,0.00019178,2]
[374324010,1753275039794,-460.0,0.00019178,2]
[374324012,1753275039803,-460.0,0.00019178,2]
[374324014,1753275039813,-460.0,0.00019178,2]
[374324016,1753275039822,-460.0,0.00019178,2]
[374324018,1753275039831,-460.0,0.00019178,2]
[374324020,1753275039841,-460.0,0.00019178,2]
[374324022,1753275039850,-460.0,0.00019178,2]
[374324024,1753275039859,-462.39176709,0.00019178,2]
[374324026,1753275039869,-460.0,0.00019178,2]
[374324028,1753275039878,-460.0,0.00019178,2]
[374324030,1753275039888,-204.54979646,0.00019178,2]
[374324032,1753275039898,-460.0,0.00019178,2]
[374324034,1753275039907,-460.0,0.00019178,2]
[374324036,1753275039923,-460.0,0.00019178,2]
[374324038,1753275039939,-460.0,0.00019178,2]
[374324040,1753275039949,-1465.42,0.00019178,2]
[374324042,1753275039959,-460.0,0.00019178,2]
[374324044,1753275039968,-460.0,0.00019178,2]
[374324046,1753275039977,-460.0,0.00019178,2]
[374324048,1753275039986,-1609.84,0.00019178,2]
[374324050,1753275039996,-460.0,0.00019178,2]
[374324052,1753275040005,-460.0,0.00019178,2]
[374324054,1753275040015,-496.96,0.00019178,2]
[374324056,1753275040024,-466.64434431,0.00019178,2]
[374324058,1753275040034,-460.0,0.00019178,2]
[374324060,1753275040043,-460.0,0.00019178,2]
[374324062,1753275040052,-460.0,0.00019178,2]
[374324064,1753275040062,-460.0,0.00019178,2]
[374324066,1753275040071,-460.0,0.00019178,2]
[374324068,1753275040080,-460.0,0.00019178,2]
[374324070,1753275040090,-626.63,0.00019178,2]
[374324072,1753275040099,-622.89,0.00019178,2]
[374324074,1753275040109,-460.0,0.00019178,2]
[374324076,1753275040118,-269.05320935,0.00019178,2]
[374324078,1753275040128,-460.0,0.00019178,2]
[374324080,1753275040138,-2457.64,0.00019178,2]
[374324082,1753275040147,-542.85056577,0.00019178,2]
[374324084,1753275040157,-460.0,0.00019178,2]
[374324086,1753275040168,-460.0,0.00019178,2]
[374324088,1753275040178,-460.0,0.00019178,2]
[374324090,1753275040190,-460.0,0.00019178,2]
[374324092,1753275040199,-415.02,0.00019178,2]
[374324094,1753275040209,-460.0,0.00019178,2]
[374324097,1753275040218,-460.0,0.00019178,2]
[374324098,1753275040227,-460.0,0.00019178,2]
[374324101,1753275040237,-460.0,0.00019178,2]
[374324104,1753275040254,-460.0,0.00019178,2]
[374324106,1753275040269,-460.0,0.00019178,2]
[374324108,1753275040279,-460.0,0.00019178,2]
[374324110,1753275040288,-460.0,0.00019178,2]
[374324112,1753275040298,-460.0,0.00019178,2]
[374324114,1753275040308,-460.0,0.00019178,2]
[374324116,1753275040318,-484.49,0.00019178,2]
[374324118,1753275040328,-1915.5,0.00019178,2]
[374324120,1753275040337,-460.0,0.00019178,2]
[374324122,1753275040347,-460.0,0.00019178,2]
[374324124,1753275040357,-267.22777333,0.00019178,2]
[374324126,1753275040366,-460.0,0.00019178,2]
[374324128,1753275040376,-460.0,0.00019178,2]
[374324130,1753275040386,-2768.02,0.00019178,2]
[374324132,1753275040396,-460.0,0.00019178,2]
[374324135,1753275040406,-460.0,0.00019178,2]
[374324137,1753275040416,-314.0210308,0.00019178,2]
[374324139,1753275040427,-460.0,0.00019178,2]
[374324140,1753275040438,-479.5,0.00019178,2]
[374324143,1753275040447,-460.0,0.00019178,2]
[374324145,1753275040457,-460.0,0.00019178,2]
[374324147,1753275040467,-460.0,0.00019178,2]
[374324149,1753275040477,-460.0,0.00019178,2]
[374324151,1753275040487,-460.0,0.00019178,2]
[374324153,1753275040497,-460.0,0.00019178,2]
[374324155,1753275040507,-488.8,0.00019178,2]
[374324157,1753275040517,-460.0,0.00019178,2]
[374324159,1753275040527,-602.87,0.00019178,2]
[374324161,1753275040537,-460.0,0.00019178,2]
[374324163,1753275040546,-460.0,0.00019178,2]
[374324165,1753275040556,-460.0,0.00019178,2]
[374324167,1753275040565,-460.0,0.00019178,2]
[374324169,1753275040574,-476.31,0.00019178,2]
[374324171,1753275040583,-460.0,0.00019178,2]
[374324173,1753275040593,-460.0,0.00019178,2]
[374324175,1753275040603,-3163.79,0.00019178,2]
[374324177,1753275040612,-460.0,0.00019178,2]
[374324179,1753275040623,-460.0,0.00019178,2]
[374324181,1753275040632,-460.0,0.00019178,2]
[374324183,1753275040642,-460.0,0.00019178,2]
[374324186,1753275040652,-460.0,0.00019178,2]
[374324188,1753275040662,-460.0,0.00019178,2]
[374324190,1753275040671,-460.0,0.00019178,2]
[374324192,1753275040681,-993.41,0.00019178,2]
[374324194,1753275040691,-543.2,0.00019178,2]
[374324196,1753275040702,-589.1,0.00019178,2]
[374324198,1753275040712,-460.0,0.00019178,2]
[374324200,1753275040721,-460.0,0.00019178,2]
[374324202,1753275040731,-460.0,0.00019178,2]
[374324204,1753275040741,-460.0,0.00019178,2]
[374324206,1753275040750,-462.73562627,0.00019178,2]
[374324208,1753275040760,-460.0,0.00019178,2]
[374324210,1753275040769,-460.0,0.00019178,2]
[374324212,1753275040779,-460.0,0.00019178,2]
[374324214,1753275040788,-3169.28,0.00019178,2]
[374324216,1753275040797,-460.0,0.00019178,2]
[374324218,1753275040807,-460.0,0.00019178,2]
[374324220,1753275040817,-460.0,0.00019178,2]
[374324222,1753275040826,-460.0,0.00019178,2]
[374324224,1753275040836,-460.0,0.00019178,2]
[374324226,1753275040846,-1362.25,0.00019178,2]
[374324228,1753275040856,-460.0,0.00019178,2]
[374324230,1753275040866,-391.75247045,0.00019178,2]
[374324232,1753275040876,-478.79,0.00019178,2]
[374324234,1753275040886,-460.0,0.00019178,2]
[374324236,1753275040895,-756.18,0.00019178,2]
[374324238,1753275040904,-460.0,0.00019178,2]
[374324240,1753275040914,-460.0,0.00019178,2]
[374324242,1753275040923,-460.0,0.00019178,2]
[374324244,1753275040933,-460.0,0.00019178,2]
[374324247,1753275040943,-460.0,0.00019178,2]
[374324248,1753275040952,-460.0,0.00019178,2]
[374324250,1753275040962,-460.0,0.00019178,2]
[374324253,1753275040971,-647.19359267,0.00019178,2]
[374324255,1753275040981,-205.23222555,0.00019178,2]
[374324257,1753275040990,-460.0,0.00019178,2]
[374324259,1753275040999,-460.0,0.00019178,2]
[374324261,1753275041008,-460.0,0.00019178,2]
[374324263,1753275041018,-460.0,0.00019178,2]
[374324265,1753275041027,-460.0,0.00019178,2]
[374324267,1753275041037,-460.0,0.00019178,2]
[374324269,1753275041047,-497.02887072,0.00019178,2]
[374324271,1753275041056,-7786.81,0.00019178,2]
[374324273,1753275041066,-460.0,0.00019178,2]
[374324275,1753275041075,-460.0,0.00019178,2]
[374324277,1753275041085,-2142.42,0.00019178,2]
[374324279,1753275041095,-460.0,0.00019178,2]
[374324281,1753275041104,-460.0,0.00019178,2]
[374324283,1753275041114,-481.84,0.00019178,2]
[374324285,1753275041123,-460.0,0.00019178,2]
[374324287,1753275041133,-460.0,0.00019178,2]
[374324289,1753275041142,-460.0,0.00019178,2]
[374324291,1753275041151,-460.0,0.00019178,2]
[374324293,1753275041163,-460.0,0.00019178,2]
[374324295,1753275041172,-460.0,0.00019178,2]
[374324297,1753275041183,-460.80743503,0.00019178,2]
[374324299,1753275041192,-460.0,0.00019178,2]
[374324301,1753275041202,-460.0,0.00019178,2]
[374324303,1753275041211,-461.16,0.00019178,2]
[374324305,1753275041221,-460.0,0.00019178,2]
[374324307,1753275041230,-460.0,0.00019178,2]
[374324309,1753275041240,-460.0,0.00019178,2]
[374324311,1753275041250,-460.0,0.00019178,2]
[374324313,1753275041259,-336.286519,0.00019178,2]
[374324315,1753275041269,-11254.58916819,0.00019178,2]
[374324317,1753275041278,-500.0,0.00019178,2]
[374324319,1753275041287,-352.99270692,0.00019451,2]
[374324321,1753275041296,-247.09489484,0.00019451,2]
[374324323,1753275041306,-460.0,0.00019452,2]
[374324326,1753275041319,-460.0,0.00019452,2]
[374324328,1753275041329,-460.0,0.00019452,2]
[374324330,1753275041339,-460.0,0.00019452,2]
[374324332,1753275041348,-460.0,0.00019452,2]
[374324334,1753275041358,-460.0,0.00019452,2]
[374324336,1753275041367,-460.0,0.00019452,2]
[374324338,1753275041376,-460.0,0.00019452,2]
[374324340,1753275041386,-6550.44,0.00019452,2]
[374324342,1753275041395,-906.7,0.00019452,2]
[374324344,1753275041405,-460.0,0.00019452,2]
[374324346,1753275041414,-460.0,0.00019452,2]
[374324348,1753275041426,-460.0,0.00019452,2]
[374324350,1753275041438,-460.0,0.00019452,2]
[374324352,1753275041447,-927.65,0.00019452,2]
[374324354,1753275041457,-322.13520045,0.00019452,2]
[374324356,1753275041466,-460.0,0.00019452,2]
[374324358,1753275041476,-460.0,0.00019452,2]
[374324360,1753275041485,-460.0,0.00019452,2]
[374324362,1753275041495,-460.0,0.00019452,2]
[374324364,1753275041505,-460.0,0.00019452,2]
[374324366,1753275041515,-609.570089,0.00019452,2]
[374324368,1753275041527,-460.0,0.00019452,2]
[374324370,1753275041538,-2622.86,0.00019452,2]
[374324372,1753275041549,-460.0,0.00019452,2]
[374324374,1753275041559,-460.0,0.00019452,2]
[374324376,1753275041568,-460.0,0.00019452,2]
[374324378,1753275041578,-460.0,0.00019452,2]
[374324381,1753275041588,-460.0,0.00019452,2]
[374324382,1753275041597,-466.52060246,0.00019452,2]
[374324385,1753275041607,-462.07381751,0.00019452,2]
[374324387,1753275041618,-467.89198023,0.00019452,2]
[374324389,1753275041627,-460.0,0.00019452,2]
[374324391,1753275041637,-1465.42,0.00019452,2]
[374324393,1753275041647,-460.0,0.00019452,2]
[374324395,1753275041659,-1609.84,0.00019452,2]
[374324397,1753275041669,-543.31,0.00019452,2]
[374324399,1753275041678,-460.0,0.00019452,2]
[374324401,1753275041691,-460.0,0.00019452,2]
[374324403,1753275041700,-460.0,0.00019452,2]
[374324405,1753275041710,-460.0,0.00019452,2]
[374324407,1753275041719,-626.63,0.00019452,2]
[374324409,1753275041729,-622.89,0.00019452,2]
[374324411,1753275041739,-460.0,0.00019452,2]
[374324413,1753275041749,-2457.64,0.00019452,2]
[374324415,1753275041759,-460.0,0.00019452,2]
[374324417,1753275041768,-460.0,0.00019452,2]
[374324419,1753275041779,-460.0,0.00019452,2]
[374324422,1753275041789,-460.0,0.00019452,2]
[374324424,1753275041799,-460.0,0.00019452,2]
[374324426,1753275041808,-460.0,0.00019452,2]
[374324427,1753275041818,-460.0,0.00019452,2]
[374324430,1753275041829,-1915.5,0.00019452,2]
[374324432,1753275041838,-460.0,0.00019452,2]
[374324434,1753275041848,-460.0,0.00019452,2]
[374324436,1753275041857,-2768.02,0.00019452,2]
[374324438,1753275041867,-479.5,0.00019452,2]
[374324440,1753275041877,-460.0,0.00019452,2]
[374324442,1753275041886,-460.0,0.00019452,2]
[374324444,1753275041896,-460.0,0.00019452,2]
[374324446,1753275041905,-488.8,0.00019452,2]
[374324448,1753275041916,-602.87,0.00019452,2]
[374324450,1753275041926,-460.0,0.00019452,2]
[374324452,1753275041936,-460.0,0.00019452,2]
[374324454,1753275041946,-460.0,0.00019452,2]
[374324456,1753275041956,-476.31,0.00019452,2]
[374324458,1753275041965,-460.0,0.00019452,2]
[374324460,1753275041975,-3163.79,0.00019452,2]
[374324462,1753275041985,-460.0,0.00019452,2]
[374324464,1753275041995,-460.0,0.00019452,2]
[374324466,1753275042005,-460.0,0.00019452,2]
[374324468,1753275042015,-993.41,0.00019452,2]
[374324471,1753275042024,-543.2,0.00019452,2]
[374324472,1753275042034,-589.1,0.00019452,2]
[374324473,1753275042044,-460.0,0.00019452,2]
[374324474,1753275042054,-460.0,0.00019452,2]
[374324476,1753275042218,-460.0,0.00019452,2]
[374324478,1753275042228,-460.0,0.00019452,2]
[374324480,1753275042238,-3169.28,0.00019452,2]
[374324482,1753275042248,-460.0,0.00019452,2]
[374324484,1753275042258,-460.0,0.00019452,2]
[374324486,1753275042267,-460.0,0.00019452,2]
[374324488,1753275042277,-1362.25,0.00019452,2]
[374324489,1753275042287,-460.0,0.00019452,2]
[374324492,1753275042297,-478.79,0.00019452,2]
[374324493,1753275042306,-460.0,0.00019452,2]
[374324495,1753275042316,-756.18,0.00019452,2]
[374324498,1753275042326,-460.0,0.00019452,2]
[374324501,1753275042336,-460.0,0.00019452,2]
[374324504,1753275042346,-333.36683095,0.00019452,2]
[374324507,1753275042356,-460.0,0.00019452,2]
[374324510,1753275042365,-460.0,0.00019452,2]
[374324512,1753275042374,-460.0,0.00019452,2]
[374324514,1753275042384,-460.0,0.00019452,2]
[374324516,1753275042393,-460.0,0.00019452,2]
[374324518,1753275042403,-7786.81,0.00019452,2]
[374324520,1753275042412,-460.0,0.00019452,2]
[374324522,1753275042423,-2142.42,0.00019452,2]
[374324524,1753275042436,-460.0,0.00019452,2]
[374324526,1753275042446,-481.84,0.00019452,2]
[374324528,1753275042456,-460.0,0.00019452,2]
[374324530,1753275042466,-460.0,0.00019452,2]
[374324532,1753275042477,-460.0,0.00019452,2]
[374324534,1753275042487,-460.0,0.00019452,2]
[374324536,1753275042497,-460.0,0.00019452,2]
[374324540,1753275042507,-460.0,0.00019452,2]
[374324544,1753275042516,-460.0,0.00019452,2]
[374324548,1753275042525,-461.16,0.00019452,2]
[374324550,1753275042535,-460.0,0.00019452,2]
[374324552,1753275042544,-500.0,0.00019452,2]
[374324554,1753275042553,-500.0,0.00019581,2]
[374324556,1753275042563,-500.0,0.00019581,2]
[374324558,1753275042572,-500.0,0.00019581,2]
[374324560,1753275042582,-500.0,0.00019581,2]
[374324563,1753275042591,-700.0,0.0001962,2]
[374324565,1753275042601,-500.0,0.00019637,2]
[374324567,1753275042610,-500.0,0.00019637,2]
[374324569,1753275042619,-500.0,0.00019637,2]
[374324571,1753275042629,-517.57490607,0.00019637,2]
[374324573,1753275042639,-500.0,0.00019637,2]
[374324575,1753275042648,-500.93391383,0.00019637,2]
[374324577,1753275042657,-500.0,0.00019705,2]
[374324579,1753275042667,-583.49864386,0.00019725,2]
[374324581,1753275042676,-460.0,0.00019726,2]
[374324583,1753275042686,-460.0,0.00019726,2]
[374324585,1753275042695,-460.0,0.00019726,2]
[374324587,1753275042705,-460.0,0.00019726,2]
[374324589,1753275042714,-460.0,0.00019726,2]
[374324591,1753275042723,-6550.44,0.00019726,2]
[374324593,1753275042732,-906.7,0.00019726,2]
[374324595,1753275042742,-460.0,0.00019726,2]
[374324597,1753275042751,-460.0,0.00019726,2]
[374324599,1753275042760,-927.65,0.00019726,2]
[374324601,1753275042770,-268.80944798,0.00019726,2]
[374324603,1753275042779,-460.0,0.00019726,2]
[374324605,1753275042789,-460.0,0.00019726,2]
[374324607,1753275042799,-460.0,0.00019726,2]
[374324609,1753275042809,-460.0,0.00019726,2]
[374324611,1753275042819,-460.0,0.00019726,2]
[374324613,1753275042829,-2622.86,0.00019726,2]
[374324615,1753275042838,-460.0,0.00019726,2]
[374324617,1753275042847,-460.0,0.00019726,2]
[374324619,1753275042857,-460.0,0.00019726,2]
[374324621,1753275042884,-1465.42,0.00019726,2]
[374324623,1753275042907,-1609.84,0.00019726,2]
[374324625,1753275042917,-460.0,0.00019726,2]
[374324627,1753275042927,-460.0,0.00019726,2]
[374324629,1753275042938,-460.0,0.00019726,2]
[374324631,1753275042947,-626.63,0.00019726,2]
[374324633,1753275042956,-622.89,0.00019726,2]
[374324635,1753275042965,-460.0,0.00019726,2]
[374324637,1753275042975,-2457.64,0.00019726,2]
[374324639,1753275042984,-460.0,0.00019726,2]
[374324641,1753275042993,-460.0,0.00019726,2]
[374324643,1753275043002,-460.0,0.00019726,2]
[374324645,1753275043011,-460.0,0.00019726,2]
[374324647,1753275043021,-460.0,0.00019726,2]
[374324649,1753275043031,-1915.5,0.00019726,2]
[374324652,1753275043049,-151.68,0.00019726,2]
[374324654,1753275043066,-2768.02,0.00019726,2]
[374324656,1753275043076,-479.5,0.00019726,2]
[374324658,1753275043086,-460.0,0.00019726,2]
[374324660,1753275043095,-460.0,0.00019726,2]
[374324663,1753275043105,-488.8,0.00019726,2]
[374324666,1753275043115,-602.87,0.00019726,2]
[374324669,1753275043125,-195.74,0.00019726,2]
[374324671,1753275043134,-460.0,0.00019726,2]
[374324673,1753275043144,-476.31,0.00019726,2]